bitfinex/quotes_BTCUSD_20250108
["timestamp","ask_amount","ask_price","bid_price","bid_amount"]
[1736366557183,0.002,94434.0,94423.0,0.21181]
[1736366557401,0.002,94434.0,94417.0,0.06112304]
[1736366557600,0.002,94434.0,94424.0,0.211809]
[1736366557804,0.001,94434.0,94426.0,0.02105853]
[1736366558085,0.001,94434.0,94427.0,0.211803]
[1736366558435,0.211774,94441.0,94427.0,0.211803]
[1736366558637,0.211767,94444.0,94427.0,0.211803]
[1736366558955,0.001,94442.0,94430.0,0.211794]
[1736366559203,0.001,94442.0,94427.0,0.211803]
[1736366559373,0.001,94442.0,94430.0,0.211795]
[1736366559607,0.00132366,94446.0,94430.0,0.211795]
[1736366559795,0.211705,94471.0,94431.0,0.10429976]
[1736366560005,0.2419564,94463.0,94447.0,0.211757]
[1736366560152,0.21304842,94462.0,94447.0,0.5294]
[1736366560351,0.211718,94466.0,94447.0,0.741157]
[1736366560552,0.00132342,94465.0,94447.0,0.5294]
[1736366560756,0.00132342,94465.0,94447.0,0.741156]
[1736366561260,0.02063961,94470.0,94447.0,0.741156]
[1736366561261,0.15,94463.0,94448.0,0.211756]
[1736366561577,0.15,94458.0,94448.0,0.52939]
[1736366562289,0.21175,94451.0,94448.0,0.52939]
[1736366562824,0.361754,94449.0,94448.0,0.52939]
[1736366562985,0.48905376,94449.0,94448.0,0.52939]
[1736366563984,0.68905376,94449.0,94448.0,0.36318999]
[1736366564329,0.68905376,94449.0,94427.0,0.0949315]
[1736366564330,0.1,94436.0,94427.0,0.0949315]
[1736366564484,0.211844,94409.0,94405.0,0.0949315]
[1736366565816,0.211831,94415.0,94394.0,0.211875]
[1736366565817,0.211835,94413.0,94394.0,0.211875]
[1736366566042,0.211845,94409.0,94386.0,0.0949315]
[1736366566318,0.211835,94413.0,94394.0,0.211877]
[1736366566522,0.15,94414.0,94398.0,0.211868]
[1736366566743,0.001,94409.0,94394.0,0.055136]
[1736366567093,0.001,94409.0,94406.0,0.21185]
[1736366567373,0.001,94409.0,94395.0,0.10429976]
[1736366567374,0.211802,94428.0,94410.0,0.21184]
[1736366567545,0.21181,94425.0,94410.0,0.21184]
[1736366567747,0.001,94413.0,94410.0,0.21184]
[1736366568271,0.001,94413.0,94410.0,0.31613976]
[1736366568474,0.001,94413.0,94410.0,0.52798076]
[1736366569034,0.002,94413.0,94410.0,0.52798076]
[1736366569232,0.001,94413.0,94410.0,0.52798076]
[1736366569938,0.001,94413.0,94412.0,0.211837]
[1736366570155,0.001,94413.0,94412.0,0.31613676]
[1736366570655,0.001,94413.0,94412.0,0.39213676]
[1736366571295,0.001,94413.0,94412.0,0.39313676]
[1736366571492,0.211794,94431.0,94412.0,0.39313676]
[1736366571657,0.211799,94429.0,94414.0,0.211832]
[1736366572173,0.211799,94429.0,94413.0,0.10429976]
[1736366572373,0.211799,94429.0,94413.0,0.31613276]
[1736366572571,0.2285369,94430.0,94413.0,0.31613276]
[1736366572773,0.2285369,94430.0,94417.0,0.211824]
[1736366572978,0.15,94430.0,94417.0,0.211824]
[1736366573179,0.001,94429.0,94417.0,0.211824]
[1736366573749,0.1513238,94430.0,94412.0,0.076]
[1736366573956,0.15,94428.0,94412.0,0.076]
[1736366574163,0.15,94426.0,94408.0,0.0949315]
[1736366574374,0.21181,94424.0,94408.0,0.0949315]
[1736366574574,0.21182,94420.0,94408.0,0.0949315]
[1736366574983,0.21181,94424.0,94408.0,0.0949315]
[1736366575187,0.15,94441.0,94411.0,0.211838]
[1736366575393,0.217806,94426.0,94408.0,0.211846]
[1736366575594,0.2485886,94425.0,94408.0,0.211846]
[1736366575979,0.002,94420.0,94408.0,0.211846]
[1736366576378,0.2485886,94425.0,94408.0,0.211846]
[1736366576778,0.4603966,94425.0,94408.0,0.211846]
[1736366577009,0.001,94426.0,94409.0,0.14989976]
[1736366577409,0.001,94426.0,94421.0,0.211816]
[1736366578147,0.211788,94434.0,94418.0,0.211823]
[1736366579062,0.423576,94434.0,94418.0,0.211823]
[1736366579399,0.001,94426.0,94418.0,0.211823]
[1736366579600,0.001,94426.0,94413.0,0.0949315]
[1736366579856,0.0362797,94425.0,94414.0,0.0949315]
[1736366580050,0.211808,94426.0,94414.0,0.0949315]
[1736366581064,0.211808,94426.0,94410.0,0.3067725]
[1736366581262,0.211808,94426.0,94410.0,0.41107226]
[1736366581981,0.211803,94428.0,94413.0,0.211833]
[1736366582160,0.15,94433.0,94413.0,0.211833]
[1736366582364,0.15,94431.0,94413.0,0.423667]
[1736366582564,0.15,94429.0,94410.0,0.10429976]
[1736366582835,0.001,94426.0,94410.0,0.10429976]
[1736366583148,0.001,94426.0,94410.0,0.19923126]
[1736366583353,0.211801,94428.0,94410.0,0.19923126]
[1736366583964,0.15,94429.0,94410.0,0.19923126]
[1736366584081,0.15,94429.0,94416.0,0.211827]
[1736366584286,0.0573588,94428.0,94411.0,0.19923126]
[1736366584560,0.0583588,94428.0,94417.0,0.211825]
[1736366584753,0.001,94428.0,94417.0,0.211825]
[1736366585773,0.001,94428.0,94411.0,0.19923126]
[1736366585774,0.21312681,94427.0,94411.0,0.0949315]
[1736366586011,0.01045895,94437.0,94411.0,0.0949315]
[1736366586012,0.211828,94417.0,94411.0,0.0949315]
[1736366586342,0.211836,94413.0,94411.0,0.0949315]
[1736366586784,0.25429976,94412.0,94411.0,0.0949315]
[1736366586942,0.15,94412.0,94411.0,0.0949315]
[1736366587128,0.211819,94420.0,94401.0,0.21186]
[1736366587323,0.211819,94420.0,94405.0,0.211851]
[1736366587726,0.001,94413.0,94405.0,0.211851]
[1736366587939,0.001,94413.0,94402.0,0.211859]
[1736366588141,0.001,94413.0,94406.0,0.21185]
[1736366588580,0.001,94413.0,94410.0,0.0477]
[1736366588821,0.001,94413.0,94411.0,0.0816]
[1736366589024,0.001,94413.0,94411.0,0.293439]
[1736366589224,0.211815,94422.0,94411.0,0.0816]
[1736366589610,0.001,94413.0,94411.0,0.0816]
[1736366589987,0.0423621,94422.0,94411.0,0.293439]
[1736366590560,0.211798,94430.0,94414.0,0.21183]
[1736366590763,0.211789,94434.0,94411.0,0.0816]
[1736366590764,0.001,94413.0,94411.0,0.0816]
[1736366590958,0.001,94413.0,94412.0,0.211837]
[1736366592775,0.21311584,94432.0,94411.0,0.0816]
[1736366593098,0.211792,94432.0,94414.0,0.211832]
[1736366593673,0.211792,94432.0,94418.0,0.211821]
[1736366594016,0.002,94432.0,94419.0,0.211821]
[1736366594221,0.003,94432.0,94419.0,0.2330031]
[1736366594378,0.002,94432.0,94419.0,0.2330031]
[1736366594581,0.002,94432.0,94419.0,0.211821]
[1736366595364,0.211794,94431.0,94419.0,0.211821]
[1736366595982,0.211794,94431.0,94417.0,0.09515791]
[1736366596304,0.423589,94431.0,94418.0,0.211824]
[1736366596442,0.4809479,94431.0,94418.0,0.211824]
[1736366596649,0.4809479,94431.0,94418.0,0.18982399]
[1736366596852,0.4809479,94431.0,94418.0,0.09515791]
[1736366597045,0.2691529,94431.0,94418.0,0.30697991]
[1736366597372,0.001,94431.0,94423.0,0.21181]
[1736366598142,0.001,94431.0,94419.0,0.211821]
[1736366598342,0.001,94431.0,94423.0,0.211811]
[1736366598540,0.001,94431.0,94429.0,0.211797]
[1736366598741,0.01706396,94463.0,94444.0,0.211764]
[1736366599002,0.00132346,94462.0,94444.0,0.211764]
[1736366599203,0.211737,94457.0,94444.0,0.211764]
[1736366599889,0.16213165,94470.0,94445.0,0.10429976]
[1736366600081,0.01,94470.0,94460.0,0.19421112]
[1736366600283,0.01,94470.0,94467.0,0.211713]
[1736366600457,0.01,94470.0,94469.0,0.211709]
[1736366600660,0.01,94470.0,94469.0,0.84527876]
[1736366600863,0.01,94470.0,94469.0,0.86827876]
[1736366601628,0.01,94470.0,94469.0,0.84527876]
[1736366602443,0.01,94470.0,94469.0,1.38598254]
[1736366602609,0.211646,94497.0,94479.0,0.423372]
[1736366602815,0.211646,94497.0,94479.0,0.952592]
[1736366603496,0.211646,94497.0,94479.0,0.740906]
[1736366603707,0.23272026,94523.0,94491.0,0.211659]
[1736366603917,0.02113126,94523.0,94491.0,0.10429976]
[1736366604129,0.211619,94510.0,94493.0,0.211655]
[1736366604321,0.002,94497.0,94493.0,0.211655]
[1736366604524,0.211619,94510.0,94493.0,0.211655]
[1736366604731,0.21162,94509.0,94493.0,0.740795]
[1736366605358,0.001,94497.0,94493.0,0.95245]
[1736366605603,0.001,94497.0,94495.0,0.258751]
[1736366605718,0.001,94497.0,94496.0,0.10429976]
[1736366605921,0.009,94515.0,94496.0,0.63341976]
[1736366606145,0.211581,94527.0,94509.0,0.211617]
[1736366606354,0.211581,94527.0,94509.0,0.740667]
[1736366606552,0.15,94524.0,94509.0,0.52905]
[1736366606759,0.2083615,94524.0,94509.0,0.50704999]
[1736366607168,0.001,94515.0,94509.0,0.50704999]
[1736366607504,0.2083615,94524.0,94509.0,0.50704999]
[1736366607680,0.15,94522.0,94509.0,0.50704999]
[1736366607885,0.0013225,94521.0,94509.0,0.50704999]
[1736366608084,0.0439497,94521.0,94509.0,0.50704999]
[1736366608286,0.0013225,94521.0,94509.0,0.50704999]
[1736366608884,0.21161,94514.0,94509.0,0.50704999]
[1736366609063,0.15,94513.0,94509.0,0.50704999]
[1736366609476,0.00132266,94512.0,94509.0,0.50704999]
[1736366609676,0.15,94513.0,94509.0,0.50704999]
[1736366610093,0.211596,94520.0,94509.0,0.55775499]
[1736366610094,0.001,94515.0,94509.0,0.55775499]
[1736366610294,0.423192,94520.0,94509.0,0.50704999]
[1736366610549,0.15,94547.0,94509.0,0.50704999]
[1736366610750,0.003,94512.0,94509.0,0.50704999]
[1736366611004,0.211608,94515.0,94509.0,0.50704999]
[1736366611401,0.213608,94515.0,94509.0,0.50704999]
[1736366611616,0.211608,94515.0,94509.0,0.50704999]
[1736366611747,0.15,94522.0,94509.0,0.50704999]
[1736366611748,0.15,94522.0,94509.0,0.48504998]
[1736366611958,0.211617,94511.0,94509.0,0.48504998]
[1736366613912,0.22219428,94511.0,94509.0,0.48504998]
[1736366614121,0.22419428,94511.0,94509.0,0.48504998]
[1736366614438,0.15,94510.0,94509.0,0.48504998]
[1736366616856,0.15,94510.0,94509.0,0.46304997]
[1736366617058,0.154,94510.0,94509.0,0.46304997]
[1736366617532,0.25829976,94510.0,94509.0,0.46304997]
[1736366617728,0.154,94510.0,94509.0,0.46304997]
[1736366617942,0.211603,94517.0,94509.0,0.46304997]
[1736366618222,0.007,94510.0,94509.0,0.46304997]
[1736366619141,0.007,94510.0,94509.0,0.53051847]
[1736366619381,0.007,94510.0,94509.0,0.51154997]
[1736366619535,0.211593,94522.0,94509.0,0.51154997]
[1736366619742,0.15,94524.0,94509.0,0.51154997]
[1736366619985,0.004,94510.0,94509.0,0.51154997]
[1736366620186,0.004,94510.0,94509.0,0.46304997]
[1736366620393,0.06601466,94510.0,94509.0,0.46304997]
[1736366620595,0.211615,94511.0,94509.0,0.46304997]
[1736366621568,0.001,94510.0,94509.0,0.46304997]
[1736366621782,0.001,94510.0,94509.0,0.44104996]
[1736366623243,0.211615,94511.0,94509.0,0.44104996]
[1736366623390,0.212615,94511.0,94509.0,0.44104996]
[1736366623607,0.213615,94511.0,94509.0,0.44104996]
[1736366623813,0.15,94510.0,94509.0,0.44104996]
[1736366624056,0.151,94510.0,94509.0,0.44104996]
[1736366624259,0.15,94510.0,94509.0,0.44104996]
[1736366624519,0.002,94511.0,94509.0,0.44104996]
[1736366624646,0.214615,94511.0,94509.0,0.44104996]
[1736366624853,0.211615,94511.0,94509.0,0.44104996]
[1736366625249,0.001,94510.0,94509.0,0.44104996]
[1736366626708,0.002,94510.0,94509.0,0.41904995]
[1736366626910,0.001,94510.0,94509.0,0.41904995]
[1736366627488,0.001,94510.0,94509.0,0.75586995]
[1736366627689,0.002,94510.0,94509.0,0.86016971]
[1736366627928,0.00248,94515.0,94509.0,0.86016971]
[1736366628135,0.00248,94515.0,94514.0,0.211608]
[1736366628581,0.00248,94515.0,94514.0,0.95492776]
[1736366630419,0.00248,94515.0,94514.0,1.05922752]
[1736366630817,0.00248,94515.0,94514.0,1.06122752]
[1736366631023,0.00248,94515.0,94514.0,0.95692776]
[1736366631347,0.00248,94515.0,94514.0,0.64102]
[1736366632804,0.00348,94515.0,94514.0,0.64102]
[1736366633563,0.00348,94515.0,94514.0,0.63902]
[1736366633564,0.215086,94515.0,94514.0,0.63902]
[1736366633765,0.215086,94515.0,94514.0,0.64102]
[1736366634182,0.214086,94515.0,94514.0,0.64102]
[1736366634387,0.214086,94515.0,94514.0,0.63902]
[1736366635011,0.364086,94515.0,94514.0,0.63902]
[1736366635413,0.365086,94515.0,94514.0,0.63902]
[1736366635851,0.46938576,94515.0,94514.0,0.63902]
[1736366636000,0.47238576,94515.0,94514.0,0.63902]
[1736366636771,0.47138576,94515.0,94514.0,0.61701999]
[1736366636900,0.47338576,94515.0,94514.0,0.61701999]
[1736366637309,0.46838576,94515.0,94514.0,0.61701999]
[1736366637505,0.47538576,94515.0,94514.0,0.61701999]
[1736366637872,0.47238576,94515.0,94514.0,0.61701999]
[1736366638389,0.66408179,94515.0,94514.0,0.59585899]
[1736366638796,0.56348576,94515.0,94514.0,0.59585899]
[1736366639544,0.48038576,94515.0,94514.0,0.59585899]
[1736366641827,0.48038576,94515.0,94514.0,0.57385898]
[1736366642651,0.376086,94515.0,94514.0,0.57385898]
[1736366645517,0.48038576,94515.0,94514.0,0.57385898]
[1736366645721,0.57178179,94515.0,94514.0,0.57385898]
[1736366645920,0.48038576,94515.0,94514.0,0.57385898]
[1736366646098,0.01448,94515.0,94514.0,0.57385898]
[1736366646345,0.01448,94515.0,94514.0,0.70265898]
[1736366646766,0.01448,94515.0,94514.0,0.68065897]
[1736366646767,0.01048,94515.0,94514.0,0.68065897]
[1736366647171,0.01448,94515.0,94514.0,0.68065897]
[1736366647790,0.00248,94515.0,94514.0,0.78495873]
[1736366648121,0.01148,94515.0,94514.0,0.78495873]
[1736366648331,0.00248,94515.0,94514.0,1.13595265]
[1736366648498,0.00248,94515.0,94514.0,1.13695265]
[1736366648747,0.00248,94515.0,94514.0,1.24125241]
[1736366649309,0.00348,94515.0,94514.0,1.24125241]
[1736366649510,0.00348,94515.0,94514.0,1.13695265]
[1736366649883,0.01064078,94541.0,94529.0,0.211574]
[1736366650119,0.2258182,94543.0,94529.0,0.7261]
[1736366650668,0.2258182,94543.0,94531.0,0.0804]
[1736366650854,0.2258182,94543.0,94531.0,0.80649]
[1736366651259,0.003,94541.0,94531.0,0.80649]
[1736366651653,0.21155,94540.0,94532.0,0.09501151]
[1736366652130,0.21155,94540.0,94532.0,0.0730115]
[1736366652767,0.23644884,94543.0,94532.0,0.0730115]
[1736366652903,0.44799284,94543.0,94531.0,0.80649]
[1736366653103,0.004,94540.0,94531.0,0.80649]
[1736366653645,0.211552,94539.0,94531.0,0.80649]
[1736366654243,0.423105,94539.0,94531.0,0.80649]
[1736366654545,0.423126,94535.0,94531.0,0.80649]
[1736366654896,0.211566,94533.0,94531.0,0.72609]
[1736366656684,0.211566,94533.0,94531.0,0.70408999]
[1736366657490,0.212566,94533.0,94531.0,0.70408999]
[1736366661206,0.001,94533.0,94531.0,0.70408999]
[1736366661819,0.001,94533.0,94531.0,0.68208998]
[1736366662740,0.0142742,94543.0,94531.0,0.68208998]
[1736366662910,0.211546,94542.0,94531.0,0.68208998]
[1736366663255,0.0142742,94543.0,94531.0,0.89365998]
[1736366664110,0.001,94533.0,94531.0,0.68308998]
[1736366664367,0.211554,94539.0,94531.0,0.68208998]
[1736366664576,0.001,94533.0,94531.0,0.68208998]
[1736366664747,0.211568,94532.0,94531.0,0.68208998]
[1736366665348,0.0142742,94543.0,94531.0,0.68208998]
[1736366665518,0.211546,94542.0,94531.0,0.68308998]
[1736366665719,0.211546,94542.0,94531.0,0.68208998]
[1736366666431,0.0142742,94543.0,94531.0,0.68208998]
[1736366666630,0.0142742,94543.0,94531.0,0.68308998]
[1736366666836,0.0142742,94543.0,94531.0,0.66108997]
[1736366667212,0.0142742,94543.0,94532.0,0.211568]
[1736366667412,0.0142742,94543.0,94532.0,1.215216]
[1736366667723,0.0142742,94543.0,94532.0,1.003648]
[1736366668445,0.0142742,94543.0,94536.0,0.13]
[1736366668755,0.001,94542.0,94536.0,0.92206]
[1736366669114,0.0142742,94543.0,94536.0,0.92206]
[1736366669514,0.0152742,94543.0,94536.0,0.92206]
[1736366670818,0.0152742,94543.0,94536.0,0.92306]
[1736366671057,0.0152742,94543.0,94536.0,0.92206]
[1736366671268,0.0142742,94543.0,94536.0,0.92206]
[1736366671745,0.0152742,94543.0,94536.0,0.90005999]
[1736366672689,0.2268202,94543.0,94536.0,0.90005999]
[1736366673088,0.211553,94539.0,94536.0,0.84126]
[1736366673630,0.211546,94542.0,94536.0,0.84126]
[1736366674086,0.211554,94539.0,94536.0,0.79206]
[1736366674669,0.211554,94539.0,94536.0,0.79306]
[1736366676007,0.0142742,94543.0,94536.0,0.79306]
[1736366676838,0.0142742,94543.0,94536.0,0.77105999]
[1736366677253,0.211546,94542.0,94536.0,0.77005999]
[1736366678657,0.211546,94542.0,94536.0,0.77105999]
[1736366678855,0.212546,94542.0,94536.0,0.77105999]
[1736366679705,0.04383582,94541.0,94536.0,0.77105999]
[1736366679886,0.212546,94542.0,94536.0,0.77105999]
[1736366679887,0.4231,94540.0,94536.0,0.77105999]
[1736366680485,0.4231,94540.0,94536.0,0.77005999]
[1736366681014,0.4231,94540.0,94536.0,0.77105999]
[1736366681175,0.4231,94540.0,94536.0,0.77005999]
[1736366681372,0.4231,94540.0,94536.0,0.77105999]
[1736366681779,0.211555,94538.0,94536.0,0.74905998]
[1736366682203,0.211555,94538.0,94536.0,0.74805998]
[1736366682204,0.25429976,94537.0,94536.0,0.74805998]
[1736366682605,0.47546344,94537.0,94536.0,0.74905998]
[1736366682966,0.61696344,94537.0,94536.0,0.64327998]
[1736366683992,0.61696344,94537.0,94536.0,0.62112398]
[1736366684247,0.7212632,94537.0,94536.0,0.62112398]
[1736366684449,0.39596344,94537.0,94536.0,0.62112398]
[1736366684865,0.36186344,94537.0,94536.0,0.62112398]
[1736366685072,0.27029976,94537.0,94536.0,0.62112398]
[1736366685698,0.25429976,94537.0,94536.0,0.62112398]
[1736366685992,0.26329976,94537.0,94536.0,0.62112398]
[1736366686201,0.37259952,94537.0,94536.0,0.62112398]
[1736366686693,0.26829976,94537.0,94536.0,0.59912397]
[1736366687098,0.25929976,94537.0,94536.0,0.59912397]
[1736366687546,0.26729976,94537.0,94536.0,0.59912397]
[1736366687904,0.10929976,94537.0,94536.0,0.60160397]
[1736366688119,0.014,94537.0,94536.0,0.60160397]
[1736366688740,0.23136731,94537.0,94536.0,0.60160397]
[1736366688956,0.21736731,94537.0,94536.0,0.60160397]
[1736366689301,0.154,94537.0,94536.0,0.60160397]
[1736366689499,0.157,94537.0,94536.0,0.60160397]
[1736366691542,0.26129976,94537.0,94536.0,0.60160397]
[1736366692730,0.26129976,94537.0,94536.0,0.57960396]
[1736366692985,0.157,94537.0,94536.0,0.57960396]
[1736366696415,0.23866731,94537.0,94536.0,0.57960396]
[1736366696810,0.157,94537.0,94536.0,0.55760395]
[1736366701773,0.157,94537.0,94536.0,0.53560394]
[1736366702168,0.26262206,94537.0,94536.0,0.53560394]
[1736366702375,0.26129976,94537.0,94536.0,0.53560394]
[1736366702606,0.48429976,94537.0,94536.0,0.47213594]
[1736366702806,0.58859952,94537.0,94536.0,0.42982394]
[1736366703131,0.26129976,94537.0,94536.0,0.42982394]
[1736366703498,0.25729976,94537.0,94536.0,0.42982394]
[1736366703899,0.26629976,94537.0,94536.0,0.42982394]
[1736366704107,0.25729976,94537.0,94536.0,0.42982394]
[1736366704316,0.25429976,94537.0,94536.0,0.42982394]
[1736366704482,0.36407578,94537.0,94536.0,0.42982394]
[1736366704668,0.35507578,94537.0,94536.0,0.42982394]
[1736366704869,0.45507578,94537.0,94536.0,0.42982394]
[1736366705072,0.36807578,94537.0,94536.0,0.42982394]
[1736366705272,0.46807578,94537.0,94536.0,0.42982394]
[1736366705674,0.46207578,94537.0,94536.0,0.42982394]
[1736366705913,0.36807578,94537.0,94536.0,0.42982394]
[1736366706704,0.36107578,94537.0,94536.0,0.40782393]
[1736366707113,0.47007578,94537.0,94536.0,0.40782393]
[1736366707310,0.46407578,94537.0,94536.0,0.40782393]
[1736366707731,0.47007578,94537.0,94536.0,0.40782393]
[1736366708823,0.26929976,94537.0,94536.0,0.40782393]
[1736366711824,0.26929976,94537.0,94536.0,0.38582392]
[1736366713181,0.165,94537.0,94536.0,0.38582392]
[1736366713392,0.015,94537.0,94536.0,0.38582392]
[1736366714396,0.006,94537.0,94536.0,0.38582392]
[1736366714601,0.211553,94539.0,94536.0,0.38582392]
[1736366715054,0.003,94537.0,94536.0,0.38582392]
[1736366715546,0.04403722,94537.0,94536.0,0.38582392]
[1736366716283,0.427106,94539.0,94536.0,0.38582392]
[1736366716488,0.425106,94539.0,94536.0,0.38582392]
[1736366716686,0.002,94539.0,94536.0,0.36382391]
[1736366716924,0.001,94537.0,94536.0,0.36382391]
[1736366717273,0.002,94539.0,94536.0,0.36382391]
[1736366717677,0.211555,94538.0,94536.0,0.36382391]
[1736366718103,0.05993772,94537.0,94536.0,0.36382391]
[1736366718303,0.001,94537.0,94536.0,0.36382391]
[1736366718677,0.211555,94538.0,94536.0,0.36382391]
[1736366719013,0.212555,94538.0,94536.0,0.36382391]
[1736366719316,0.001,94538.0,94536.0,0.36482391]
[1736366719559,0.211554,94539.0,94536.0,0.36382391]
[1736366719888,0.002,94538.0,94536.0,0.36382391]
[1736366720489,0.208554,94539.0,94536.0,0.36482391]
[1736366720698,0.420108,94539.0,94536.0,0.36482391]
[1736366721431,0.211557,94537.0,94536.0,0.36482391]
[1736366721991,0.211557,94537.0,94536.0,0.3428239]
[1736366722205,0.46585676,94537.0,94536.0,0.3418239]
[1736366723031,0.50152683,94537.0,94536.0,0.3418239]
[1736366723254,0.47752683,94537.0,94536.0,0.3418239]
[1736366723660,0.219557,94537.0,94536.0,0.3418239]
[1736366723822,0.219557,94537.0,94536.0,0.4231239]
[1736366724024,0.362557,94537.0,94536.0,0.4231239]
[1736366724747,0.361557,94537.0,94536.0,0.4231239]
[1736366725128,0.365557,94537.0,94536.0,0.3418239]
[1736366725393,0.43248323,94537.0,94536.0,0.3418239]
[1736366725874,0.372557,94537.0,94536.0,0.3418239]
[1736366726072,0.368557,94537.0,94536.0,0.3418239]
[1736366726272,0.361557,94537.0,94536.0,0.3418239]
[1736366726494,0.363557,94537.0,94536.0,0.3418239]
[1736366726678,0.366557,94537.0,94536.0,0.31982389]
[1736366727019,0.363557,94537.0,94536.0,0.31982389]
[1736366727153,0.368557,94537.0,94536.0,0.32082389]
[1736366727827,0.005,94537.0,94536.0,0.36752389]
[1736366727980,0.008,94537.0,94536.0,0.36752389]
[1736366728179,0.219557,94537.0,94536.0,0.36752389]
[1736366728503,0.008,94537.0,94536.0,0.36752389]
[1736366728704,0.219557,94537.0,94536.0,0.36752389]
[1736366730897,0.26409502,94537.0,94536.0,0.32082389]
[1736366731716,0.26409502,94537.0,94536.0,0.29882388]
[1736366732133,0.26693853,94537.0,94536.0,0.29882388]
[1736366732880,0.22240051,94537.0,94536.0,0.29882388]
[1736366736701,0.32670027,94537.0,94536.0,0.27682387]
[1736366736903,0.49970027,94537.0,94536.0,0.27682387]
[1736366737993,0.59970027,94537.0,94536.0,0.23451187]
[1736366738202,0.77960027,94537.0,94536.0,0.13458517]
[1736366738404,0.88390003,94537.0,94536.0,0.13458517]
[1736366738606,0.87890003,94537.0,94536.0,0.13358517]
[1736366738801,0.1,94518.0,94502.0,0.09490628]
[1736366739005,0.211633,94503.0,94502.0,0.09490628]
[1736366739209,0.46867503,94503.0,94502.0,0.09490628]
[1736366739726,0.46867503,94503.0,94483.0,0.0763]
[1736366739727,0.10704203,94503.0,94488.0,0.14390628]
[1736366739895,0.211635,94502.0,94489.0,0.211664]
[1736366740124,0.2143604,94502.0,94489.0,0.211664]
[1736366740326,0.2143604,94502.0,94488.0,0.14390628]
[1736366740727,0.2143604,94502.0,94489.0,0.211664]
[1736366740728,0.05865491,94501.0,94489.0,0.211664]
[1736366740927,0.2143604,94502.0,94489.0,0.211664]
[1736366741569,0.2143604,94502.0,94488.0,0.049]
[1736366741570,0.0037254,94502.0,94494.0,0.0763]
[1736366741965,0.001,94502.0,94494.0,0.0763]
[1736366742171,0.00273473,94501.0,94494.0,0.0763]
[1736366742371,0.211649,94496.0,94494.0,0.0763]
[1736366742525,0.23348737,94496.0,94494.0,0.0763]
[1736366742731,0.00273473,94495.0,94494.0,0.0763]
[1736366743636,0.001,94502.0,94494.0,0.0763]
[1736366743637,0.212637,94502.0,94494.0,0.0763]
[1736366743841,0.21164,94500.0,94494.0,0.0763]
[1736366744042,0.00272978,94499.0,94494.0,0.0763]
[1736366744290,0.04543016,94499.0,94494.0,0.0763]
[1736366744882,0.423288,94498.0,94494.0,0.0763]
[1736366745081,0.423288,94498.0,94488.0,0.049]
[1736366745082,0.211664,94489.0,94488.0,0.049]
[1736366745283,0.211664,94489.0,94478.0,0.09490628]
[1736366745465,0.211674,94485.0,94478.0,0.09490628]
[1736366745668,0.211674,94485.0,94477.0,0.0763]
[1736366745669,0.211678,94483.0,94477.0,0.0763]
[1736366746086,0.211682,94481.0,94477.0,0.0763]
[1736366746486,0.211678,94483.0,94477.0,0.0763]
[1736366746724,0.00273222,94480.0,94477.0,0.0763]
[1736366746900,0.211678,94483.0,94477.0,0.0763]
[1736366747096,0.00273222,94479.0,94477.0,0.0763]
[1736366747306,0.211658,94492.0,94478.0,0.0337002]
[1736366747527,0.211658,94492.0,94477.0,0.0763]
[1736366747735,0.211668,94488.0,94477.0,0.0763]
[1736366747940,0.00272796,94491.0,94477.0,0.0763]
[1736366748139,0.00272797,94487.0,94485.0,0.211672]
[1736366748366,0.211637,94502.0,94485.0,0.211672]
[1736366748742,0.001,94492.0,94485.0,0.211672]
[1736366748938,0.001,94492.0,94479.0,0.211687]
[1736366749136,0.211649,94497.0,94482.0,0.211678]
[1736366749406,0.0027153,94491.0,94482.0,0.211678]
[1736366749578,0.211649,94497.0,94482.0,0.211678]
[1736366749792,0.0027153,94490.0,94482.0,0.211678]
[1736366750000,0.04330471,94496.0,94482.0,0.211678]
[1736366750306,0.00271702,94495.0,94482.0,0.211678]
[1736366751111,0.00271702,94495.0,94479.0,0.211687]
[1736366752680,0.00371702,94495.0,94483.0,0.211677]
[1736366752882,0.03213446,94495.0,94478.0,0.10429976]
[1736366753089,0.03213446,94495.0,94480.0,0.211685]
[1736366753353,0.03213446,94495.0,94483.0,0.211676]
[1736366753736,0.03213446,94495.0,94480.0,0.211685]
[1736366753737,0.00371702,94495.0,94480.0,0.211685]
[1736366753875,0.00371702,94495.0,94478.0,0.10429976]
[1736366754520,0.001,94495.0,94479.0,0.211687]
[1736366754723,0.002,94495.0,94484.0,0.211674]
[1736366754966,0.002,94495.0,94479.0,0.211687]
[1736366755176,0.211642,94499.0,94482.0,0.211678]
[1736366755177,0.00271591,94494.0,94482.0,0.211678]
[1736366755380,0.00271591,94494.0,94485.0,0.211671]
[1736366755569,0.001,94495.0,94485.0,0.211671]
[1736366756087,0.00260716,94494.0,94485.0,0.211671]
[1736366756485,0.211642,94500.0,94485.0,0.211671]
[1736366756653,0.00260748,94493.0,94482.0,0.211678]
[1736366756856,0.211648,94497.0,94480.0,0.211684]
[1736366757092,0.00260748,94496.0,94480.0,0.211684]
[1736366757251,0.211651,94495.0,94480.0,0.211684]
[1736366757662,0.00260748,94494.0,94480.0,0.211684]
[1736366757995,0.00260748,94494.0,94477.0,0.0763]
[1736366757996,0.00132284,94493.0,94477.0,0.0763]
[1736366758161,0.211658,94492.0,94477.0,0.0763]
[1736366758367,0.211666,94489.0,94477.0,0.0763]
[1736366758693,0.211669,94487.0,94477.0,0.0763]
[1736366758903,0.06376016,94486.0,94477.0,0.0763]
[1736366759162,0.211673,94485.0,94477.0,0.0763]
[1736366759362,0.211681,94482.0,94477.0,0.0763]
[1736366759932,0.21169,94478.0,94470.0,0.5365]
[1736366760300,0.21169,94478.0,94469.0,0.0753]
[1736366760301,0.00132312,94477.0,94461.0,0.0753]
[1736366760502,0.01056229,94476.0,94461.0,0.0753]
[1736366760706,0.211696,94475.0,94461.0,0.0753]
[1736366760908,0.211704,94472.0,94461.0,0.0753]